Cogmind - Beta 9.3 @@@ ROGUE MODE // 2019.12.24 @ 16:32:44 // Winter2019/RPGLIKE Player: Einax Result: Destroyed by G-47 Trooper with Particle Gun Performance ------------- Evolutions (0) 0 Regions Visited (1) 200 Robots Destroyed (12) 60 Value Destroyed (331) 331 Prototype IDs (0) 0 Alien Tech Used (0) 0 Bonus (0) 0 TOTAL SCORE: 591 Bonus ------- None Cogmind --------- Core Integrity 0/600 Matter 228/300 Energy 250/250 System Corruption 0% Temperature Cool (9) Movement Walking (120) Location -10/Materials Parts ------- > --- POWER (1) -------- Ion Engine > --- PROPULSION (2) --- Aluminum Leg Aluminum Leg > --- UTILITY (1) ------ Heat Sink > --- WEAPON (1) ------- Assault Rifle > --- INVENTORY (4) ---- Assault Rifle Peak State ------------ > --- POWER ------------ Ion Engine > --- PROPULSION ------- Compact Wheel Compact Wheel > --- UTILITY ---------- Heat Sink > --- WEAPON ----------- Assault Rifle > --- INVENTORY -------- Aluminum Leg Aluminum Leg Assault Rifle [Rating: 5] Favorites ----------- Power Ion Engine Engine Ion Engine Propulsion Compact Wheel Leg Aluminum Leg Wheel Compact Wheel Utility Heat Sink Device Heat Sink Weapon Assault Rifle Ballistic Gun Assault Rifle Build | -11 -10 ------- Run | Scr Mat Slots Evolved 1 | 1 . Power . | . . Propulsion 1 | 1 . Utility . | . . Weapon . | . . Parts Attached 8 | 4 4 Power 2 | 1 1 Engine 2 | 1 1 Core . | . . Reactor . | . . Propulsion 4 | 2 2 Treads . | . . Leg 2 | . 2 Wheel 2 | 2 . Hover . | . . Flight . | . . Utility 1 | . 1 Device 1 | . 1 Storage . | . . Processor . | . . Hackware . | . . Protection . | . . Artifact . | . . Weapon 1 | 1 . Energy Gun . | . . Energy Cannon . | . . Ballistic Gun 1 | 1 . Ballistic Cannon . | . . Launcher . | . . Special Weapon . | . . Impact Weapon . | . . Slashing Weapon . | . . Piercing Weapon . | . . Special Melee Weapon . | . . Unidentified Prototypes . | . . Parts Lost . | . . Power . | . . Propulsion . | . . Utility . | . . Weapon . | . . Highest Loss Streak . | . . Average Slot Usage (%) 89 | . 89 Engine 20 | . 20 Leg 17 | . 17 Wheel 22 | . 22 Device 9 | . 9 Ballistic Gun 20 | . 20 Naked Turns . | . . Heaviest Build 8 | 7 8 Greatest Support 32 | 32 32 Greatest Overweight (x) 1 | 1 . Average Overweight (x) . | . . Largest Inventory Capacity 4 | 4 4 Average Capacity 3 | 3 4 Most Carried 4 | 1 4 Average Carried 1 | . 1 Final Capacity 4 | 4 4 Final Carried 1 | 1 1 Class Distribution -------------------- 60% | Mutant 39% | Scavenger-Mutant Dominant Class ---------------- Mutant | -10/Materials Resources | -11 -10 ----------- Run | Scr Mat Matter Collected 427 | 240 187 Remotely . | . . Salvage Created 326 | . 326 Parts 34 | . 34 Haulers Intercepted . | . . Recyclers Shooed . | . . Parts Field Recycled . | . . Retrieved Matter . | . . Parts Self-Destructed . | . . Prevented . | . . Kills | -11 -10 ------- Run | Scr Mat Combat Hostiles Destroyed 11 | . 11 Guns 11 | . 11 Classes Destroyed 3 | . 3 Watcher 1 | . 1 Swarmer 3 | . 3 Grunt 8 | . 8 Best Kill Streak 8 | . 8 Combat Bots Only 7 | . 7 Max Kills in Single Turn 1 | . 1 Gunslinging . | . . Exploded . | . . Melee . | . . Uniques/NPCs Destroyed . | . . Combat | -11 -10 -------- Run | Scr Mat Damage Taken 922 | . 922 Core 748 | . 748 Absorbed by Shields . | . . Redirected to Core 554 | . 554 Core Remaining (%) 100 | 100 . Volleys Fired 73 | . 73 Largest 1 | . 1 Hottest 20 | . 20 Shots Fired 73 | . 73 Gun 73 | . 73 Cannon . | . . Launcher . | . . Special . | . . Kinetic 73 | . 73 Thermal . | . . Explosive . | . . Electromagnetic . | . . Robot Hit Streak 14 | . 14 Robot Miss Streak 4 | . 4 Penetration Max . | . . Secondary Targets . | . . Shots Hit Robots 45 | . 45 Core Hits 22 | . 22 Critical Hits . | . . Critical Kills . | . . Critical Parts Destroyed . | . . Melee Attacks . | . . Impact . | . . Slashing . | . . Piercing . | . . Sneak Attacks . | . . Combat Hostiles . | . . Follow-up Attacks . | . . Damage Inflicted 634 | . 634 Guns 634 | . 634 Cannons . | . . Explosions . | . . Melee . | . . Ramming . | . . Kinetic 634 | . 634 Thermal . | . . Explosive . | . . Electromagnetic . | . . Impact . | . . Slashing . | . . Piercing . | . . Highest Corruption . | . . Average Corruption . | . . Corruption Purged . | . . Overload Shots . | . . Overflow Damage . | . . Projectiles . | . . Explosions . | . . Melee . | . . Knockbacks . | . . Impact . | . . Kinetic . | . . Secondary . | . . Self-Inflicted Damage . | . . Shots . | . . Rammed . | . . Targets Rammed . | . . Kicked . | . . Crushed . | . . Highest Temperature . | . . Average Temperature . | . . Received Heat Transfer 453 | . 453 Siege Activations . | . . Robots Corrupted . | . . Combat Hostiles . | . . Parts Fried . | . . Impact Corruptions . | . . Robots Melted . | . . Combat Hostiles . | . . Parts Melted . | . . Heat Transferred . | . . Parts Sabotaged . | . . Parts Stolen . | . . Parts Stripped . | . . Power Chain Reactions . | . . Missiles Intercepted . | . . Alert | -11 -10 ------- Run | Scr Mat Peak Influence 322 | . 322 Average Influence 172 | . 206 Maximum Alert Level 1 | . 1 Low Security (%) 51 | 100 41 Level 1 48 | . 58 Level 2 . | . . Level 3 . | . . Level 4 . | . . Level 5 . | . . High Security . | . . Max Security . | . . Squads Dispatched 3 | . 3 Investigation 1 | . 1 Extermination . | . . Reinforcement 2 | . 2 Assault . | . . Garrison . | . . Intercept . | . . Construction Impeded . | . . Haulers Reinforced . | . . Stealth | -11 -10 --------- Run | Scr Mat Distress Signals . | . . Communications Jammed . | . . Distress Signals . | . . Times Spotted 17 | . 17 Peak Tracking Total 4 | . 4 Tactical Retreats 1 | . 1 Traps | -11 -10 ------- Run | Scr Mat Traps Triggered 1 | . 1 Indirectly . | . . Trap Hack Attempts . | . . Triggered . | . . Disarmed . | . . Reprogrammed . | . . Reused . | . . Traps Extracted . | . . Installed . | . . Triggered . | . . Machines | -11 -10 ---------- Run | Scr Mat Machines Disabled . | . . Max in Single Turn . | . . Machines Sabotaged . | . . Garrisons Compromised . | . . Overloaded Fab Kills . | . . Fab Network Shutdowns . | . . Hacking | -11 -10 --------- Run | Scr Mat Machines Accessed . | . . Terminals . | . . Fabricators . | . . Repair Stations . | . . Recycling Units . | . . Scanalyzers . | . . Garrison Access . | . . Total Hacks . | . . Successful . | . . Failed . | . . Catastrophic . | . . Database Lockouts . | . . Manual . | . . Terminals . | . . Fabricators . | . . Repair Stations . | . . Recycling Units . | . . Scanalyzers . | . . Garrison Access . | . . Terminal Hacks . | . . Fabricator Hacks . | . . Repair Station Hacks . | . . Recycling Unit Hacks . | . . Scanalyzer . | . . Garrison Access Hacks . | . . Unauthorized Hacks . | . . Terminals . | . . Fabricators . | . . Repair Stations . | . . Recycling Units . | . . Scanalyzers . | . . Garrison Access . | . . Data Cores Recovered . | . . Used . | . . Hacking Detections . | . . Full Trace Events . | . . Feedback Events . | . . Feedback Blocked . | . . Robot Schematics Acquired . | . . Robots Built . | . . Matter . | . . Time . | . . Total Robot Build Rating . | . . Part Schematics Acquired . | . . Parts Built . | . . Matter . | . . Time . | . . Total Part Build Rating . | . . Parts Repaired . | . . Time . | . . Parts Recycled . | . . Recycled Matter . | . . Retrieved Matter . | . . Retrieved Components . | . . Parts Scanalyzed . | . . Part Schematics Acquired . | . . Parts Damaged . | . . Bothacking | -11 -10 ------------ Run | Scr Mat Used RIF Installer . | . . Robots Hacked . | . . Non-combat . | . . Combat . | . . Robot Hacks Applied . | . . Relay Couplers Released . | . . Robots Rewired . | . . Allies Hacked . | . . Hacks Repelled . | . . Allies | -11 -10 -------- Run | Scr Mat Total Allies . | . . Largest Group . | . . Highest-Rated Group . | . . Highest-Rated Ally . | . . Total Orders . | . . Ally Attacks . | . . Total Damage . | . . Kills . | . . Allies Corrupted . | . . Allies Melted . | . . Intel | -11 -10 ------- Run | Scr Mat Robot Analysis Total . | . . Derelict Logs Recovered . | . . Drone Launches . | . . Drone Recoveries . | . . Exploration | -11 -10 ------------- Run | Scr Mat Turns Passed 428 | 70 358 Spaces Moved 222 | 65 157 Core 10 | 10 . Treads . | . . Legs 89 | . 89 Wheels 123 | 55 68 Hover . | . . Flight . | . . Fastest Speed 50 | 50 100 Average Speed 106 | 93 111 Slowest Speed 120 | 100 120 Overloaded Moves . | . . Propulsion Burnouts . | . . Robots Hopped . | . . Cave-ins Triggered . | . . Exploration Rate (%) 12 | 4 20 Regions Visited 1 Branch Regions . Pre-discovered Areas . | . . Known Exits Taken . | . . Unknown Exits Taken 1 | 1 . Scrap Searched . | . . Spaces Dug . | . . Terrain Destroyed . | . . Melee . | . . Projectile . | . . AOE . | . . Actions | -11 -10 --------- Run | Scr Mat Total 343 | 73 270 Wait 18 | . 18 Move 221 | 64 157 Hop . | . . Pick Up 11 | 5 6 Fast Attach . | . . Attach 5 | 4 1 Detach . | . . Swap 3 | . 3 Drop 5 | . 5 Fire 73 | . 73 Melee . | . . Ram . | . . Kick . | . . Crush . | . . Escape Stasis . | . . Rewire . | . . Trap . | . . Miscellaneous 7 | . 7 Route ------- -11/Scrapyard -10/Materials History --------- Turn | Location | Event 6 | -11/Scrapyard | Upgraded with Propulsion slot (x1) 19 | -11/Scrapyard | Discovered new exit (range 15) 71 | -11/Scrapyard | Entered Materials 163 | -10/Materials | Destroyed 7 combat bots 225 | -10/Materials | Core integrity fell below 50% 414 | -10/Materials | Core integrity fell below 20% 429 | -10/Materials | Destroyed by G-47 Trooper with Particle Gun Last Messages --------------- Acquired 38 matter. Acquired 2 matter. R-06 Scavenger collects Com. Wheel. R-06 Scavenger collects Heat Sink. K-01 Serf collects debris. R-06 Scavenger collects Com. Wheel. K-01 Serf collects debris. Triggered Alarm Trap. An alarm sounds. ALERT: Alarm triggered, dispatching investigation squad. K-01 Serf cleans the Atomic Centrifuge. Connecting with Recycling Unit... Current location identified: Materials K-01 Serf cleans the Atomic Centrifuge. K-01 Serf collects debris. G-34 Mercenary destroyed. R-06 Scavenger collects Sml. Laser. R-06 Scavenger collects Aluminum Leg. G-34 Mercenary destroyed. R-06 Scavenger collects Ion Engine. Map ----- +----------------------------------------------------+ | ????????????????????????????????????? ??????????? | | ????????????????????????????? ????" ??????????? | | ????????????????????????????? ? ??????????? | | ????????????????????????????? ??????????? | | ????????????????????????????# ??????????? | | ????????????????????????????# ??????????? | | ????????????????????????????# """ #?????????? | | ????????????????????????????# """ #?????????? | | ????????????????????????????# """ #?????????? | | ????????????????????????????# #?????????? | | ????????????????????????????# #?######### | | ? ?????????????????????????# """ #?# # | | ?? ???????????????????????# """ #?#"" # | | """?????????????????????# """ #?#"Y # | | T" #################### ###"" # | | ? """ % %% % # # | | ###### """ + # | | #????# """ # """ # | | #########+##????# """ ### """ # | | ????????????????# #?# """ # | | ????????????????# #?# # | | ????????????????# ###########+## ####?# # | | ????????????????#####???# % # #????######### | | ????????????????????????#g""" # ###### # | | ????????????????????????# """ + # # | | ????????????????????????#@""" "" # + # | | ????????????????????????#[r "" ## # # | | ????????????????????????#=""" T" ## # """ # | | ????????????????????????# """ "" ## + """"" # | | ????????????????????????# """ "" ######### """"" # | | ????????????????????????# #???????# """"" # | | ????????????????????????##########???????# """ # | | ?????????????????????????????????????????######### | | ?????????????????????????????????????????????????? | | | | | | | | | | | | | | | | | | | | | | | | | | | | | | | | | +----------------------------------------------------+ Best States ------------- Heat Dissipation 35 Energy Generation 10 Energy Capacity 250 Matter Stores 300 Matter Capacity 300 Sight Range 16 Terrain Scan Density 10 Evasion (%) 40 Item Schematics ----------------- None Robot Schematics ------------------ None Fabricated ------------ Nothing Alien Tech Used ----------------- None Achievements -------------- None Challenges ------------ None RPGLIKE | -11 -10 --------- Run | Scr Mat Levels Raised . | . . XP Earned 4385 | 3000 1385 XP Spent 3000 | 3000 . Upgrades 5 | 5 . Propulsion Slot 1 | 1 . Inventory Capacity 4 | 4 . Protomatter Created 132 | . 132 Integrity Restored 138 | . 138 Core 138 | . 138 Protomatter Decayed 41 | . 41 Game ------ Seed IntegrationImpactBoomstick Manual? 0 Play Time 00:14:26 Cumulative 15.9 hours Start 2019.12.24 @ 16:19:28 End 2019.12.24 @ 16:32:44 Sessions 1 Manual Loads 0 Difficulty Rogue Special Mode Winter2019/RPGLIKE Game No. 11 Rogue 11 Adventurer 0 Explorer 0 Win Type - Total 0 Types 0/0/0/0/0/0/0 Lore% 6 Gallery% 16 Achievement% 13 Wizard Run 0 Options --------- ASCII 0 Keyboard 0 Movement Numpad Keybinds 0 Fullscreen 1 Font 18/SmallcapsGlow Map View 76x50 Tactical HUD 0 Map Filters NONE Filters NONE Steam 1 RUN: b79f0a86-b931-4f06-bbda-8e0657d3d115